fUST/lending_fUST_20251018
["ID","MTS","AMOUNT","RATE_DAILY","PERIOD"]
[391704125,1760736519021,221.56690757,0.00033673,120]
[391704126,1760736519086,688.2405894,0.00033673,120]
[391704127,1760736519773,720.83553606,0.00033673,120]
[391704128,1760736520215,325.27927415,0.00033673,120]
[391704129,1760736521317,356.03769656,0.00033673,60]
[391704130,1760736521541,192.86394386,0.00033673,60]
[391704131,1760736521756,524.62682022,0.00033673,60]
[391704132,1760736521812,166.81868204,0.00033673,120]
[391704133,1760736523699,225.13559084,0.00033673,120]
[391704134,1760736524742,192.88466481,0.00033673,120]
[391704135,1760736524777,1764.98087956,0.00033673,120]
[391704136,1760736525537,221.98861646,0.00033673,120]
[391704137,1760736525681,257.12413704,0.00033673,120]
[391704138,1760736525999,353.20429827,0.00033673,120]
[391704139,1760736526155,699.36519105,0.00033673,120]
[391704140,1760736526626,453.49836707,0.00033673,120]
[391704141,1760736526676,209.61559567,0.00033673,120]
[391704143,1760736526823,267.29588963,0.00033673,120]
[391704144,1760736527765,379.44964647,0.00033673,120]
[391704201,1760736631932,-300.0,0.00027378,2]
[391704205,1760736631989,-993.58969715,0.00027378,2]
[391704207,1760736632000,-200.0,0.00027378,2]
[391704208,1760736632011,-162.44294196,0.0002739,7]
[391704209,1760736632024,-1293.58969715,0.00027542,2]
[391704210,1760736632037,-1293.58969716,0.00027683,2]
[391704211,1760736632049,-300.0,0.00027929,2]
[391704212,1760736632060,-1200.0,0.00027929,2]
[391704213,1760736632070,-300.0,0.0002793,2]
[391704214,1760736632080,-300.0,0.0002793,2]
[391704215,1760736632090,-300.0,0.0002793,2]
[391704216,1760736632102,-300.0,0.0002793,2]
[391704218,1760736632113,-5438.85957726,0.00027941,2]
[391704221,1760736632124,-877.7268866,0.00027953,2]
[391704222,1760736632135,-1000.0,0.00028,2]
[391704223,1760736632147,-166.0,0.00028015,2]
[391704224,1760736632159,-1000.0,0.00028015,2]
[391704225,1760736632171,-1000.0,0.00028015,2]
[391704226,1760736632182,-1000.0,0.00028015,2]
[391704227,1760736632195,-1000.0,0.00028015,2]
[391704228,1760736632207,-500.0,0.00028015,2]
[391704229,1760736632218,-500.0,0.00028021,2]
[391704230,1760736632231,-220.12971741,0.00028021,2]
[391704231,1760736632243,-165.07709862,0.00028021,2]
[391704232,1760736632256,-622.22344064,0.00028021,2]
[391704233,1760736632266,-500.0,0.00028021,2]
[391704234,1760736632277,-500.0,0.00028021,2]
[391704235,1760736632287,-500.0,0.00028021,2]
[391704236,1760736632297,-386.40477834,0.00028021,2]
[391704237,1760736632307,-382.80299066,0.00028021,2]
[391704238,1760736632317,-500.0,0.00028021,2]
[391704239,1760736632329,-500.0,0.00028021,2]
[391704240,1760736632342,-500.0,0.00028021,2]
[391704241,1760736632354,-500.0,0.00028021,2]
[391704242,1760736632365,-500.0,0.00028021,2]
[391704243,1760736632375,-455.94984854,0.00028021,2]
[391704244,1760736632385,-500.0,0.00028021,2]
[391704245,1760736632396,-500.0,0.00028021,2]
[391704246,1760736632407,-500.0,0.00028021,2]
[391704247,1760736632418,-500.0,0.00028021,2]
[391704248,1760736632429,-500.0,0.00028021,2]
[391704249,1760736632440,-500.0,0.00028021,2]
[391704250,1760736632451,-489.88259413,0.00028021,2]
[391704251,1760736632461,-209.20033229,0.00028021,2]
[391704252,1760736632472,-76994.4991091,0.00028022,2]
[391704253,1760736632482,-3536.53964488,0.00028022,2]
[391704254,1760736632492,-453.91085961,0.00028031,2]
[391704255,1760736632503,-237.59114178,0.00028031,2]
[391704256,1760736632513,-2712.5,0.00028031,2]
[391704257,1760736632525,-524.7,0.00028032,10]
[391704258,1760736632535,-68275.78081143,0.00028032,2]
[391704259,1760736632548,-966.91527796,0.00028032,2]
[391704272,1760736637865,-859.04,0.00028032,2]
[391704295,1760736641200,-322.236,0.00028032,2]
[391704600,1760736644044,-329.67008568,0.00028032,2]
[391704829,1760736646195,-216.83,0.00028022,3]
[391704831,1760736646204,-2651.529588,0.00028032,2]
[391705429,1760736652269,150.0,0.0001845,2]
[391706242,1760736674178,150.0,0.0002186,2]
[391706243,1760736674608,150.0,0.00022901,2]
[391706244,1760736675034,150.0,0.00023942,2]
[391706245,1760736675417,150.52,0.00024983,2]
[391706246,1760736675845,188.15,0.00026024,2]
[391706247,1760736676647,-225.78,0.00027065,2]
[391706248,1760736682553,200.0,0.00033673,120]
[391706249,1760736686922,914.69305766,0.00020773,2]
[391706250,1760736687744,300.0,0.000185,2]
[391706251,1760736749827,150.0,0.00021929,2]
[391706252,1760736750038,150.0,0.00022973,2]
[391706253,1760736750470,150.0,0.00024018,2]
[391706254,1760736750932,150.0,0.00025062,2]
[391706255,1760736751405,162.94,0.00026106,2]
[391706256,1760736755827,152.0,0.00024,120]
[391706257,1760736757216,152.0,0.000255,120]
[391706258,1760736758587,152.0,0.000269,120]
[391706259,1760736760017,152.0,0.000284,120]
[391706261,1760736805228,212.0,0.00024521,13]
[391706262,1760736822837,150.0,0.00022223,2]
[391706263,1760736823773,150.0,0.00023281,2]
[391706264,1760736824239,1.07072005,0.0002434,2]
[391706265,1760736824266,148.92927995,0.0002434,2]
[391706266,1760736824676,150.0,0.00025398,2]
[391706267,1760736825060,150.0,0.00026456,2]
[391706268,1760736886224,2538.193,0.00033789,60]
[391706269,1760736888389,426.9,0.00029041,120]
[391706270,1760736894982,150.0,0.00022053,2]
[391706271,1760736895448,150.0,0.00023103,2]
[391706272,1760736895853,150.0,0.00024153,2]
[391706273,1760736896263,150.0,0.00025203,2]
[391706274,1760736896703,77.14986616,0.00026253,2]
[391706275,1760736896730,72.85013384,0.00026253,2]
[391706276,1760736932781,160.0,0.00028682,120]
[391706277,1760736963248,150.0,0.00022072,2]
[391706279,1760736979650,100000.0,0.0002699,2]
[391706280,1760736985618,200.0,0.00033789,120]
[391706281,1760737048838,31797.3812204,0.00026779,2]
[391706282,1760737079928,182.57,0.00015494,30]
[391706283,1760737080245,182.57,0.00015494,2]
[391706284,1760737080532,182.56,0.00015494,30]
[391706286,1760737122279,417.15472785,0.00027,2]
[391706287,1760737148243,150.13050197,0.00029041,120]
[391706288,1760737226946,200.0,0.000272,120]
[391706289,1760737227770,150.0,0.00025205,2]
[391706290,1760737228195,172.5,0.00025805,2]
[391706291,1760737228610,195.0,0.00026405,2]
[391706292,1760737233588,160.0,0.00028119,120]
[391706293,1760737234778,200.0,0.000272,120]
[391706294,1760737235082,200.0,0.000287,120]
[391706296,1760737281987,200.0,0.00033841,120]
[391706298,1760737354336,189.395116,0.00026318,2]
[391706299,1760737363723,1000.0,0.00026318,30]
[391706300,1760737451214,222.28799718,0.00026629,2]
[391706301,1760737539839,176.0,0.00025302,120]
[391706302,1760737541204,176.0,0.00026567,120]
[391706303,1760737542587,176.0,0.00027895,120]
[391706305,1760737582502,200.0,0.00033838,120]
[391706306,1760737615091,-217.5,0.00027005,2]
[391706307,1760737615112,-36.69225941,0.00027201,2]
[391706308,1760737644096,3686.19563518,0.0002699,2]
[391706309,1760737644129,83670.97274279,0.0002699,2]
[391706310,1760737718076,162478.0,0.00027,2]
[391706311,1760737830132,176.0,0.0002785,120]
[391706378,1760737832409,-1200.0,0.00027269,2]
[391706381,1760737832419,-1200.0,0.0002727,2]
[391706383,1760737832428,-300.0,0.0002727,2]
[391706385,1760737832437,-300.0,0.0002727,2]
[391706387,1760737832447,-203.50000025,0.0002727,2]
[391706389,1760737832459,-96.49999975,0.0002727,2]
[391706391,1760737832468,-300.0,0.0002727,2]
[391706393,1760737832477,-300.0,0.0002727,2]
[391706395,1760737832486,-5000.0,0.00027273,2]
[391706397,1760737832496,-333.17764993,0.00027405,2]
[391706399,1760737832505,-668.0,0.0002746,2]
[391706401,1760737832515,-50000.0,0.00027505,2]
[391706403,1760737832524,-1038.07280327,0.00027505,2]
[391706405,1760737832537,-333.17764993,0.00027563,2]
[391706407,1760737832546,-2120.38,0.00027563,3]
[391706409,1760737832556,-2120.36,0.00027596,3]
[391706410,1760737832566,-2120.36,0.000276,3]
[391706411,1760737832575,-240.0,0.00027605,2]
[391706412,1760737832584,-2120.36,0.00027612,3]
[391706413,1760737832594,-2120.36,0.00027631,3]
[391706414,1760737832606,-2120.36,0.00027632,3]
[391706415,1760737832615,-333.17764993,0.0002772,2]
[391706416,1760737832625,-200.0,0.00027721,10]
[391706417,1760737832635,-200.0,0.00027721,10]
[391706418,1760737832644,-200.0,0.00027721,10]
[391706419,1760737832653,-200.0,0.00027721,10]
[391706420,1760737832663,-200.0,0.00027721,10]
[391706421,1760737832674,-210.280083,0.00027721,10]
[391706422,1760737832683,-2120.36,0.0002773,3]
[391706423,1760737832692,-402.69031254,0.00027731,3]
[391706424,1760737832701,-210.589,0.00027749,17]
[391706425,1760737832710,-15572.82900893,0.00027762,2]
[391706426,1760737832719,-12991.22550406,0.0002778,2]
[391706427,1760737832730,-2581.60350486,0.0002778,2]
[391706428,1760737832740,-151.2159054,0.00027792,2]
[391706429,1760737832748,-151.0,0.00027792,2]
[391706430,1760737832757,-151.0,0.00027792,2]
[391706431,1760737832766,-151.0,0.00027792,2]
[391706432,1760737832775,-151.0,0.00027792,2]
[391706433,1760737832784,-15572.82900892,0.00027797,2]
[391706434,1760737832793,-3045.37,0.00027799,3]
[391706435,1760737832801,-1522.69,0.00027799,3]
[391706436,1760737832810,-290.36,0.00027799,10]
[391706437,1760737832819,-761.34,0.00027799,3]
[391706438,1760737832828,-453.35,0.00027799,10]
[391706439,1760737832837,-151.0,0.000278,13]
[391706440,1760737832845,-151.0,0.000278,15]
[391706441,1760737832854,-151.0,0.000278,18]
[391706442,1760737832863,-151.0,0.000278,10]
[391706443,1760737832872,-151.0,0.000278,12]
[391706444,1760737832881,-18202.79069266,0.00027809,2]
[391706445,1760737832892,-850.00614396,0.00027809,2]
[391706446,1760737832903,-1809.49332446,0.00027809,2]
[391706447,1760737832915,-63589.16989552,0.00027809,2]
[391706448,1760737832924,-469.45401246,0.00027809,2]
[391706449,1760737832934,-11936.59479906,0.0002781,2]
[391706450,1760737832943,-4882.64,0.00027819,2]
[391706451,1760737832952,-500.0,0.0002782,2]
[391706452,1760737832962,-552.29,0.0002782,5]
[391706453,1760737832972,-500.0,0.0002782,5]
[391706454,1760737832982,-2336.79,0.0002782,5]
[391706455,1760737832991,-513.19213595,0.0002782,5]
[391706456,1760737833001,-177.96999264,0.00027832,2]
[391706457,1760737833011,-500.0,0.00027835,2]
[391706458,1760737833021,-500.0,0.00027835,2]
[391706459,1760737833031,-614.49244423,0.00027835,2]
[391706460,1760737833040,-203.27527783,0.00027835,2]
[391706461,1760737833050,-151.0,0.00027836,30]
[391706462,1760737833059,-151.0,0.00027836,30]
[391706463,1760737833069,-366.254661,0.00027836,30]
[391706464,1760737833078,-297.980834,0.00027836,30]
[391706465,1760737833088,-366.254661,0.00027836,30]
[391706466,1760737833097,-151.0,0.00027836,30]
[391706467,1760737833107,-366.254661,0.00027836,30]
[391706468,1760737833117,-151.0,0.00027836,30]
[391706469,1760737833126,-151.0,0.00027836,30]
[391706470,1760737833135,-151.0,0.00027836,30]
[391706471,1760737833145,-366.254661,0.00027836,30]
[391706472,1760737833154,-151.0,0.00027836,30]
[391706473,1760737833163,-151.0,0.00027836,30]
[391706474,1760737833172,-151.0,0.00027836,30]
[391706475,1760737833182,-151.0,0.00027836,30]
[391706476,1760737833191,-151.0,0.00027836,30]
[391706477,1760737833202,-581.516727,0.00027836,30]
[391706478,1760737833211,-581.516727,0.00027836,30]
[391706479,1760737833222,-194.114879,0.00027836,30]
[391706480,1760737833231,-581.516727,0.00027836,30]
[391706481,1760737833241,-581.516727,0.00027836,30]
[391706482,1760737833250,-151.0,0.00027836,30]
[391706483,1760737833260,-151.0,0.00027836,30]
[391706484,1760737833270,-151.0,0.00027836,30]
[391706485,1760737833279,-151.0,0.00027836,30]
[391706486,1760737833289,-151.0,0.00027836,30]
[391706487,1760737833298,-562.087582,0.00027836,30]
[391706488,1760737833308,-562.087582,0.00027836,30]
[391706489,1760737833474,-562.087582,0.00027836,30]
[391706490,1760737833484,-151.0,0.00027836,30]
[391706491,1760737833494,-562.087582,0.00027836,30]
[391706492,1760737833505,-151.0,0.00027836,30]
[391706493,1760737833515,-151.0,0.00027836,30]
[391706494,1760737833524,-154.056301,0.00027836,30]
[391706495,1760737833537,-151.0,0.00027836,30]
[391706496,1760737833546,-151.0,0.00027836,30]
[391706497,1760737833556,-151.0,0.00027836,30]
[391706498,1760737833566,-84451.4600566,0.00027836,2]
[391706499,1760737833575,-469.45401246,0.00027836,2]
[391706500,1760737833584,-122.29738234,0.00027845,5]
[391706501,1760737833609,-429.99261766,0.00027845,5]
[391706502,1760737833620,-500.0,0.00027845,5]
[391706503,1760737833630,-2336.79,0.00027845,5]
[391706504,1760737833639,-552.0,0.0002786,2]
[391706505,1760737833648,-500.0,0.0002786,2]
[391706506,1760737833658,-873.0,0.0002786,2]
[391706507,1760737833667,-153.75859162,0.0002786,2]
[391706508,1760737833676,-500.0,0.0002786,2]
[391706509,1760737833685,-151.0,0.0002786,2]
[391706510,1760737833695,-151.0,0.0002786,2]
[391706511,1760737833705,-500.0,0.0002786,2]
[391706512,1760737833714,-500.0,0.0002786,2]
[391706513,1760737833724,-151.0,0.0002786,2]
[391706514,1760737833733,-151.0,0.00027862,30]
[391706515,1760737833743,-151.0,0.00027862,30]
[391706516,1760737833752,-366.254661,0.00027862,30]
[391706517,1760737833762,-366.254661,0.00027862,30]
[391706518,1760737833772,-151.0,0.00027862,30]
[391706519,1760737833781,-366.254661,0.00027862,30]
[391706520,1760737833791,-151.0,0.00027862,30]
[391706521,1760737833800,-151.0,0.00027862,30]
[391706522,1760737833809,-151.0,0.00027862,30]
[391706523,1760737833818,-366.254661,0.00027862,30]
[391706524,1760737833828,-151.0,0.00027862,30]
[391706525,1760737833838,-151.0,0.00027862,30]
[391706526,1760737833847,-151.0,0.00027862,30]
[391706527,1760737833857,-151.0,0.00027862,30]
[391706528,1760737833866,-151.0,0.00027862,30]
[391706529,1760737833876,-581.516727,0.00027862,30]
[391706530,1760737833885,-581.516727,0.00027862,30]
[391706531,1760737833896,-581.516727,0.00027862,30]
[391706532,1760737833905,-581.516727,0.00027862,30]
[391706533,1760737833916,-151.0,0.00027862,30]
[391706534,1760737833925,-151.0,0.00027862,30]
[391706535,1760737833935,-151.0,0.00027862,30]
[391706536,1760737833944,-151.0,0.00027862,30]
[391706537,1760737833954,-151.0,0.00027862,30]
[391706538,1760737833963,-562.087582,0.00027862,30]
[391706539,1760737833973,-562.087582,0.00027862,30]
[391706540,1760737833983,-562.087582,0.00027862,30]
[391706541,1760737833992,-151.0,0.00027862,30]
[391706542,1760737834002,-562.087582,0.00027862,30]
[391706543,1760737834011,-151.0,0.00027862,30]
[391706544,1760737834021,-151.0,0.00027862,30]
[391706545,1760737834031,-151.0,0.00027862,30]
[391706546,1760737834041,-151.0,0.00027862,30]
[391706547,1760737834050,-151.0,0.00027862,30]
[391706548,1760737834060,-84451.4600566,0.00027863,2]
[391706549,1760737834070,-469.45401246,0.00027863,2]
[391706550,1760737834080,-500.0,0.00027863,10]
[391706551,1760737834089,-552.29,0.0002787,5]
[391706552,1760737834099,-500.0,0.0002787,5]
[391706553,1760737834109,-2336.79,0.0002787,5]
[391706554,1760737834119,-500.0,0.00027873,5]
[391706555,1760737834129,-500.0,0.00027873,5]
[391706556,1760737834139,-500.0,0.00027873,2]
[391706557,1760737834148,-500.0,0.00027873,2]
[391706558,1760737834158,-500.0,0.00027873,5]
[391706559,1760737834167,-500.0,0.00027873,5]
[391706560,1760737834178,-500.0,0.00027873,5]
[391706561,1760737834187,-150.0,0.00027873,5]
[391706562,1760737834197,-500.0,0.00027873,5]
[391706563,1760737834207,-500.0,0.00027873,5]
[391706564,1760737834216,-441.75209543,0.00027873,5]
[391706565,1760737834226,-500.0,0.00027873,5]
[391706566,1760737834235,-501.98131213,0.00027873,5]
[391706567,1760737834245,-3604.72441074,0.00027873,2]
[391706568,1760737834255,-1277.98,0.0002789,30]
[391706569,1760737834264,-40326.22086431,0.0002789,2]
[391706570,1760737834276,-734.09569527,0.0002789,2]
[391706571,1760737834287,-3562.73791592,0.0002789,2]
[391706579,1760737837764,202.4966145,0.00026819,2]
[391706619,1760737840388,-0.01100756,0.00027792,2]
[391706811,1760737842182,-150.98899244,0.00027792,2]
[391706813,1760737842191,-151.0,0.00027792,2]
[391706815,1760737842200,-151.0,0.00027792,2]
[391706817,1760737842210,-267.30647741,0.00027792,2]
[391706819,1760737842219,-331.73448915,0.00027807,2]
[391706822,1760737842242,-168.26551085,0.00027807,2]
[391706824,1760737842252,-500.0,0.00027807,2]
[391706826,1760737842261,-500.0,0.00027807,2]
[391706828,1760737842271,-352.8118533,0.00027807,2]
[391706830,1760737842280,-500.0,0.00027807,2]
[391706832,1760737842289,-500.0,0.00027807,2]
[391706834,1760737842298,-500.0,0.00027807,2]
[391706836,1760737842307,-500.0,0.00027807,2]
[391706838,1760737842316,-500.0,0.00027807,2]
[391706840,1760737842326,-417.5764153,0.00027807,2]
[391706842,1760737842335,-500.0,0.00027807,2]
[391706844,1760737842344,-381.07571271,0.00027807,2]
[391706846,1760737842354,-500.0,0.00027807,2]
[391706848,1760737842363,-500.0,0.00027807,2]
[391706850,1760737842371,-164.06920077,0.00027807,2]
[391706852,1760737842380,-500.0,0.00027807,2]
[391706854,1760737842390,-500.0,0.00027807,2]
[391706856,1760737842399,-500.0,0.00027807,2]
[391706858,1760737842408,-500.0,0.00027807,2]
[391706860,1760737842418,-500.0,0.00027807,2]
[391706862,1760737842427,-500.0,0.00027807,2]
[391706864,1760737842437,-500.0,0.00027807,2]
[391706866,1760737842446,-500.0,0.00027807,2]
[391706868,1760737842455,-284.4185534,0.00027807,2]
[391706870,1760737842465,-500.0,0.00027807,2]
[391706872,1760737842475,-500.0,0.00027807,2]
[391706874,1760737842484,-500.0,0.00027807,2]
[391706876,1760737842493,-438.10755501,0.00027807,2]
[391706878,1760737842502,-500.0,0.00027807,2]
[391706880,1760737842511,-500.0,0.00027807,2]
[391706882,1760737842521,-500.0,0.00027807,2]
[391706884,1760737842530,-500.0,0.00027807,2]
[391706886,1760737842543,-500.0,0.00027807,2]
[391706888,1760737842552,-500.0,0.00027807,2]
[391706890,1760737842561,-500.0,0.00027807,2]
[391706892,1760737842571,-500.0,0.00027807,2]
[391706894,1760737842580,-500.0,0.00027807,2]
[391706896,1760737842589,-500.0,0.00027807,2]
[391706898,1760737842598,-500.0,0.00027807,2]
[391706900,1760737842607,-500.0,0.00027807,2]
[391706903,1760737842617,-500.0,0.00027807,2]
[391706905,1760737842626,-500.0,0.00027807,2]
[391706907,1760737842635,-500.0,0.00027807,2]
[391706910,1760737842645,-500.0,0.00027807,2]
[391706913,1760737842655,-500.0,0.00027807,2]
[391706916,1760737842665,-500.0,0.00027807,2]
[391706919,1760737842675,-500.0,0.00027807,2]
[391706921,1760737842684,-500.0,0.00027807,2]
[391706923,1760737842693,-500.0,0.00027807,2]
[391706925,1760737842703,-500.0,0.00027807,2]
[391706927,1760737842712,-500.0,0.00027807,2]
[391706929,1760737842722,-500.0,0.00027807,2]
[391706931,1760737842731,-15572.82900892,0.00027815,2]
[391706933,1760737842740,-15572.82900892,0.00027832,2]
[391706935,1760737842750,-325.509928,0.00027836,30]
[391706937,1760737842759,-325.509928,0.00027836,30]
[391706939,1760737842769,-325.509928,0.00027836,30]
[391706941,1760737842778,-325.509928,0.00027836,30]
[391706943,1760737842787,-475.123923,0.00027836,30]
[391706945,1760737842796,-151.0,0.00027836,30]
[391706947,1760737842805,-325.509928,0.00027862,30]
[391706949,1760737842814,-325.509928,0.00027862,30]
[391706951,1760737842824,-325.509928,0.00027862,30]
[391706952,1760737842833,-325.509928,0.00027862,30]
[391706953,1760737842842,-380.67,0.0002788,3]
[391706955,1760737842852,-124279.8656375,0.0002789,2]
[391706957,1760737842861,-1408.36203738,0.0002789,2]
[391706959,1760737842871,-151.0,0.0002789,30]
[391706962,1760737842880,-151.0,0.0002789,30]
[391706965,1760737842890,-366.254661,0.0002789,30]
[391706968,1760737842899,-366.254661,0.0002789,30]
[391706969,1760737842908,-151.0,0.0002789,30]
[391706970,1760737842918,-366.254661,0.0002789,30]
[391706971,1760737842927,-151.0,0.0002789,30]
[391706972,1760737842937,-151.0,0.0002789,30]
[391706973,1760737842946,-151.0,0.0002789,30]
[391706974,1760737842955,-366.254661,0.0002789,30]
[391706975,1760737842964,-151.0,0.0002789,30]
[391706976,1760737842974,-151.0,0.0002789,30]
[391706978,1760737842983,-151.0,0.0002789,30]
[391706980,1760737842992,-151.0,0.0002789,30]
[391706982,1760737843001,-153.01222271,0.0002789,30]
[391706984,1760737843011,-581.516727,0.0002789,30]
[391706986,1760737843021,-581.516727,0.0002789,30]
[391706988,1760737843031,-581.516727,0.0002789,30]
[391706990,1760737843040,-581.516727,0.0002789,30]
[391706992,1760737843050,-151.0,0.0002789,30]
[391706994,1760737843059,-151.0,0.0002789,30]
[391706996,1760737843068,-151.0,0.0002789,30]
[391706998,1760737843078,-160.771968,0.0002789,30]
[391707000,1760737843087,-151.0,0.0002789,30]
[391707002,1760737843096,-562.087582,0.0002789,30]
[391707004,1760737843105,-562.087582,0.0002789,30]
[391707006,1760737843114,-562.087582,0.0002789,30]
[391707008,1760737843123,-151.0,0.0002789,30]
[391707010,1760737843133,-562.087582,0.0002789,30]
[391707012,1760737843142,-151.0,0.0002789,30]
[391707014,1760737843151,-151.0,0.0002789,30]
[391707016,1760737843160,-152.83499,0.0002789,30]
[391707018,1760737843170,-153.397918,0.0002789,30]
[391707020,1760737843179,-151.0,0.0002789,30]
[391707022,1760737843188,-325.509928,0.0002789,30]
[391707024,1760737843197,-325.509928,0.0002789,30]
[391707026,1760737843207,-325.509928,0.0002789,30]
[391707028,1760737843216,-325.509928,0.0002789,30]
[391707030,1760737843226,-552.29,0.00027895,5]
[391707032,1760737843235,-500.0,0.00027895,5]
[391707034,1760737843244,-2336.79,0.00027895,5]
[391707036,1760737843254,-151.0,0.00027896,30]
[391707038,1760737843263,-151.0,0.00027896,30]
[391707040,1760737843272,-151.0,0.00027896,30]
[391707042,1760737843283,-151.0,0.00027896,30]
[391707045,1760737843292,-151.0,0.00027896,30]
[391707047,1760737843300,-151.0,0.00027896,30]
[391707049,1760737843310,-240.22412,0.00027896,30]
[391707051,1760737843319,-151.0,0.00027896,30]
[391707053,1760737843328,-151.0,0.00027896,30]
[391707055,1760737843337,-402.69031254,0.00027896,30]
[391707057,1760737843346,-151.0,0.00027896,30]
[391707059,1760737843355,-151.0,0.00027896,30]
[391707061,1760737843365,-151.0,0.00027896,30]
[391707063,1760737843375,-151.0,0.00027896,30]
[391707064,1760737843384,-153.082619,0.00027896,30]
[391707066,1760737843393,-254.199561,0.00027896,30]
[391707069,1760737843405,-254.199561,0.00027896,30]
[391707071,1760737843415,-151.0,0.00027896,30]
[391707073,1760737843424,-254.199561,0.00027896,30]
[391707075,1760737843434,-254.199561,0.00027896,30]
[391707077,1760737843443,-151.0,0.00027896,30]
[391707079,1760737843455,-151.0,0.00027896,30]
[391707081,1760737843464,-151.0,0.00027896,30]
[391707083,1760737843473,-151.0,0.00027896,30]
[391707085,1760737843483,-225.190482,0.00027896,30]
[391707087,1760737843492,-151.0,0.00027896,30]
[391707089,1760737843502,-151.0,0.00027896,30]
[391707091,1760737843511,-151.0,0.00027896,30]
[391707093,1760737843520,-151.0,0.00027896,30]
[391707095,1760737843529,-151.0,0.00027896,30]
[391707097,1760737843542,-151.0,0.00027896,30]
[391707099,1760737843551,-151.0,0.00027896,30]
[391707101,1760737843560,-151.0,0.00027896,30]
[391707103,1760737843570,-151.0,0.00027896,30]
[391707105,1760737843581,-151.0,0.00027896,30]
[391707107,1760737843594,-169.839912,0.00027896,30]
[391707109,1760737843603,-10000.0,0.00027896,30]
[391707111,1760737843613,-10000.0,0.00027896,30]
[391707113,1760737843623,-10000.0,0.00027896,30]
[391707115,1760737843632,-10000.0,0.00027896,30]
[391707117,1760737843641,-10000.0,0.00027896,30]
[391707119,1760737843651,-10000.0,0.00027896,30]
[391707121,1760737843660,-10000.0,0.00027896,30]
[391707123,1760737843669,-151.0,0.00027896,15]
[391707125,1760737843678,-10000.0,0.00027896,30]
[391707127,1760737843687,-151.0,0.00027896,15]
[391707129,1760737843697,-10000.0,0.00027896,30]
[391707131,1760737843707,-176.560609,0.00027896,15]
[391707133,1760737843719,-10000.0,0.00027896,30]
[391707135,1760737843729,-10000.0,0.00027896,30]
[391707137,1760737843739,-151.0,0.00027896,30]
[391707139,1760737843748,-297.97,0.00027896,30]
[391707141,1760737843758,-151.0,0.00027896,30]
[391707143,1760737843768,-151.0,0.00027896,30]
[391707145,1760737843777,-151.0,0.00027896,30]
[391707147,1760737843786,-151.0,0.00027896,30]
[391707149,1760737843795,-254.141532,0.00027896,30]
[391707151,1760737843804,-151.0,0.00027896,30]
[391707153,1760737843814,-151.0,0.00027896,30]
[391707155,1760737843823,-151.0,0.00027896,30]
[391707157,1760737843833,-151.0,0.00027896,30]
[391707159,1760737843842,-151.0,0.00027896,30]
[391707161,1760737843850,-153.190108,0.00027896,30]
[391707163,1760737843860,-151.0,0.00027896,30]
[391707165,1760737843869,-151.0,0.00027896,30]
[391707167,1760737843878,-151.0,0.00027896,30]